[Event "Late-Titled-Tuesday-Blitz-February-13-2024"]
[Site "Chess.com"]
[Date "2024.02.13"]
[Round "11"]
[White "LiemLe"]
[Black "TigrVShlyape"]
[Result "1/2-1/2"]
[WhiteElo "3024"]
[BlackElo "2893"]
[TimeControl "180+1"]
[EndTime "16:06:00 PST"]
[Termination "Game drawn by repetition"]

1. Nf3 {[%clk 0:03:00.9]} 1... d5 {[%clk 0:02:59.2]} 2. e3 {[%clk 0:03:00.9]}
2... Nf6 {[%clk 0:02:58]} 3. c4 {[%clk 0:03:01.3]} 3... c6 {[%clk 0:02:57.5]} 4.
Nc3 {[%clk 0:03:01]} 4... g6 {[%clk 0:02:56.6]} 5. d4 {[%clk 0:03:00.5]} 5...
Bg7 {[%clk 0:02:57]} 6. Be2 {[%clk 0:03:00.6]} 6... O-O {[%clk 0:02:57.3]} 7.
O-O {[%clk 0:03:01.3]} 7... Qb6 {[%clk 0:02:54.3]} 8. b3 {[%clk 0:02:52.4]} 8...
Bg4 {[%clk 0:02:54.1]} 9. h3 {[%clk 0:02:46.1]} 9... Bxf3 {[%clk 0:02:53.7]} 10.
Bxf3 {[%clk 0:02:47]} 10... e6 {[%clk 0:02:54]} 11. Qc2 {[%clk 0:02:43.2]} 11...
Rd8 {[%clk 0:02:52.7]} 12. Rd1 {[%clk 0:02:43.2]} 12... a5 {[%clk 0:02:52.8]}
13. Rb1 {[%clk 0:02:43.1]} 13... Na6 {[%clk 0:02:51.3]} 14. a3 {[%clk
0:02:43.4]} 14... Qa7 {[%clk 0:02:44.4]} 15. Bd2 {[%clk 0:02:42.5]} 15... Nc7
{[%clk 0:02:38.2]} 16. Be1 {[%clk 0:02:32.2]} 16... b5 {[%clk 0:02:25.1]} 17.
Rdc1 {[%clk 0:02:31.8]} 17... Nfe8 {[%clk 0:02:19.8]} 18. cxd5 {[%clk
0:01:59.7]} 18... cxd5 {[%clk 0:02:18.5]} 19. Ne2 {[%clk 0:01:58.8]} 19... Bf8
{[%clk 0:02:17.5]} 20. Ra1 {[%clk 0:01:53.4]} 20... Rac8 {[%clk 0:01:53.6]} 21.
Nf4 {[%clk 0:01:52.4]} 21... a4 {[%clk 0:01:38.5]} 22. Nd3 {[%clk 0:01:31.9]}
22... Nd6 {[%clk 0:01:31.1]} 23. bxa4 {[%clk 0:01:03.1]} 23... bxa4 {[%clk
0:01:30.8]} 24. Ne5 {[%clk 0:00:56.7]} 24... Ncb5 {[%clk 0:01:27.3]} 25. Qd3
{[%clk 0:00:51.6]} 25... Qa8 {[%clk 0:01:02.7]} 26. Bb4 {[%clk 0:00:36.1]} 26...
Rxc1+ {[%clk 0:01:00.1]} 27. Rxc1 {[%clk 0:00:35.8]} 27... Rc8 {[%clk
0:01:00.6]} 28. Rc2 {[%clk 0:00:20.5]} 28... Qb7 {[%clk 0:00:54.9]} 29. Bd1
{[%clk 0:00:20.1]} 29... Nc4 {[%clk 0:00:51.2]} 30. Nxc4 {[%clk 0:00:14.7]}
30... dxc4 {[%clk 0:00:50.4]} 31. Rxc4 {[%clk 0:00:15.6]} 31... Rxc4 {[%clk
0:00:49.9]} 32. Qxc4 {[%clk 0:00:16.5]} 32... Nxa3 {[%clk 0:00:49.8]} 33. Bxa3
{[%clk 0:00:15.7]} 33... Bxa3 {[%clk 0:00:49.8]} 34. Qxa4 {[%clk 0:00:16.3]}
34... Bd6 {[%clk 0:00:48.9]} 35. g3 {[%clk 0:00:16.2]} 35... Kg7 {[%clk
0:00:48]} 36. Qc2 {[%clk 0:00:15.3]} 36... Ba3 {[%clk 0:00:45]} 37. Qd3 {[%clk
0:00:14.9]} 37... Qb2 {[%clk 0:00:44.1]} 38. Kg2 {[%clk 0:00:14.5]} 38... Bb4
{[%clk 0:00:44.2]} 39. Be2 {[%clk 0:00:14.6]} 39... Qd2 {[%clk 0:00:43.2]} 40.
Qc4 {[%clk 0:00:14.5]} 40... h5 {[%clk 0:00:41.2]} 41. h4 {[%clk 0:00:14.7]}
41... Qb2 {[%clk 0:00:40.5]} 42. Qb5 {[%clk 0:00:14.8]} 42... Bc3 {[%clk
0:00:40]} 43. Qe5+ {[%clk 0:00:14.6]} 43... Kf8 {[%clk 0:00:38.1]} 44. Kf3
{[%clk 0:00:09.2]} 44... Qb7+ {[%clk 0:00:37.2]} 45. Qe4 {[%clk 0:00:06.3]}
45... Qxe4+ {[%clk 0:00:37]} 46. Kxe4 {[%clk 0:00:07.2]} 46... Be1 {[%clk
0:00:37]} 47. Kf3 {[%clk 0:00:07.3]} 47... Kg7 {[%clk 0:00:37.3]} 48. Kg2 {[%clk
0:00:07.1]} 48... f5 {[%clk 0:00:37]} 49. Bc4 {[%clk 0:00:06.1]} 49... Kf6
{[%clk 0:00:36.8]} 50. Kf1 {[%clk 0:00:06.7]} 50... Ba5 {[%clk 0:00:36.3]} 51.
Ke2 {[%clk 0:00:06.8]} 51... Bb4 {[%clk 0:00:35.6]} 52. Kd3 {[%clk 0:00:06.6]}
52... Be1 {[%clk 0:00:35.2]} 53. Ke2 {[%clk 0:00:07.2]} 53... Bb4 {[%clk
0:00:35.5]} 54. Bb5 {[%clk 0:00:07.9]} 54... Ba5 {[%clk 0:00:35.5]} 55. Be8
{[%clk 0:00:08.2]} 55... Bb4 {[%clk 0:00:35.2]} 56. f3 {[%clk 0:00:08.4]} 56...
Bd6 {[%clk 0:00:34.4]} 57. Kf2 {[%clk 0:00:08.5]} 57... Bc7 {[%clk 0:00:32.9]}
58. e4 {[%clk 0:00:08.8]} 58... fxe4 {[%clk 0:00:32.7]} 59. fxe4 {[%clk
0:00:09.7]} 59... e5 {[%clk 0:00:31.7]} 60. d5 {[%clk 0:00:10.2]} 60... Bb6+
{[%clk 0:00:29.7]} 61. Kf3 {[%clk 0:00:10.6]} 61... Bc5 {[%clk 0:00:29.3]} 62.
Ke2 {[%clk 0:00:10.6]} 62... Bb6 {[%clk 0:00:28.4]} 63. Kd3 {[%clk 0:00:10.1]}
63... Bf2 {[%clk 0:00:28.3]} 64. d6 {[%clk 0:00:10.2]} 64... Bxg3 {[%clk
0:00:25.6]} 65. d7 {[%clk 0:00:09.8]} 65... Ke7 {[%clk 0:00:25.7]} 66. Bxg6
{[%clk 0:00:10.5]} 66... Bxh4 {[%clk 0:00:25.8]} 67. Bxh5 {[%clk 0:00:11.1]}
67... Kxd7 {[%clk 0:00:26]} 68. Bg4+ {[%clk 0:00:11.6]} 68... Kd6 {[%clk
0:00:26.3]} 69. Bf5 {[%clk 0:00:12.5]} 69... Kc5 {[%clk 0:00:26.4]} 70. Ke2
{[%clk 0:00:13.4]} 70... Kd4 {[%clk 0:00:26.5]} 71. Kf3 {[%clk 0:00:14.3]} 71...
Be1 {[%clk 0:00:26.2]} 72. Kg4 {[%clk 0:00:15.2]} 72... Bd2 {[%clk 0:00:26.6]}
73. Kf3 {[%clk 0:00:15.7]} 73... Bf4 {[%clk 0:00:26.9]} 74. Kg4 {[%clk
0:00:16.6]} 74... Bd2 {[%clk 0:00:27]} 75. Kf3 {[%clk 0:00:17.5]} 75... Bf4
{[%clk 0:00:27.4]} 76. Kg4 {[%clk 0:00:18.4]} 76... Bd2 {[%clk 0:00:27.8]}
1/2-1/2

[Event "Late-Titled-Tuesday-Blitz-February-13-2024"]
[Site "Chess.com"]
[Date "2024.02.13"]
[Round "11"]
[White "BilodeauA"]
[Black "Hikaru"]
[Result "1/2-1/2"]
[WhiteElo "3006"]
[BlackElo "3307"]
[TimeControl "180+1"]
[EndTime "16:06:02 PST"]
[Termination "Game drawn by repetition"]

1. e4 {[%clk 0:03:00.9]} 1... c6 {[%clk 0:02:55.7]} 2. Nf3 {[%clk 0:02:51.2]}
2... d5 {[%clk 0:02:53]} 3. d3 {[%clk 0:02:51.9]} 3... Bg4 {[%clk 0:02:47.1]} 4.
h3 {[%clk 0:02:49.6]} 4... Bxf3 {[%clk 0:02:47.3]} 5. Qxf3 {[%clk 0:02:49.7]}
5... e6 {[%clk 0:02:47.5]} 6. Nc3 {[%clk 0:02:45.1]} 6... Nf6 {[%clk 0:02:40.6]}
7. g3 {[%clk 0:02:39.8]} 7... Bb4 {[%clk 0:02:26.9]} 8. Bd2 {[%clk 0:02:38.4]}
8... d4 {[%clk 0:02:20]} 9. Nb1 {[%clk 0:02:38]} 9... Qb6 {[%clk 0:02:20.6]} 10.
b3 {[%clk 0:02:32.6]} 10... a5 {[%clk 0:02:17.7]} 11. a4 {[%clk 0:02:31.8]}
11... Na6 {[%clk 0:02:12.4]} 12. Bg2 {[%clk 0:02:21.2]} 12... Qc5 {[%clk
0:02:12]} 13. Qd1 {[%clk 0:02:16.7]} 13... Bxd2+ {[%clk 0:02:02.8]} 14. Qxd2
{[%clk 0:02:13]} 14... Nb4 {[%clk 0:02:03.1]} 15. Na3 {[%clk 0:02:13.5]} 15...
b5 {[%clk 0:01:53.8]} 16. O-O {[%clk 0:02:12.8]} 16... O-O {[%clk 0:01:53.8]}
17. f4 {[%clk 0:02:04.3]} 17... Rac8 {[%clk 0:01:50.8]} 18. Kh2 {[%clk
0:02:04.4]} 18... Nd7 {[%clk 0:01:47.8]} 19. Rf2 {[%clk 0:01:56.4]} 19... Nb6
{[%clk 0:01:47.1]} 20. Nb1 {[%clk 0:01:53.3]} 20... bxa4 {[%clk 0:01:45]} 21.
bxa4 {[%clk 0:01:53.5]} 21... e5 {[%clk 0:01:39.8]} 22. fxe5 {[%clk 0:01:43.1]}
22... Rce8 {[%clk 0:01:36.5]} 23. Qd1 {[%clk 0:01:11.6]} 23... Rxe5 {[%clk
0:01:28.4]} 24. Nd2 {[%clk 0:01:12.1]} 24... Rd8 {[%clk 0:01:18.9]} 25. Nf3
{[%clk 0:01:08.2]} 25... Re7 {[%clk 0:01:18.9]} 26. Qd2 {[%clk 0:01:08.6]} 26...
Nd7 {[%clk 0:01:13.5]} 27. Raf1 {[%clk 0:01:05.9]} 27... f6 {[%clk 0:01:10.4]}
28. Nh4 {[%clk 0:01:05.9]} 28... g6 {[%clk 0:01:10.1]} 29. Qh6 {[%clk
0:01:04.8]} 29... Rg7 {[%clk 0:01:02.2]} 30. Bf3 {[%clk 0:00:56.7]} 30... Qg5
{[%clk 0:00:59.9]} 31. Qxg5 {[%clk 0:00:53.8]} 31... fxg5 {[%clk 0:01:00.8]} 32.
Ng2 {[%clk 0:00:54.5]} 32... Rf7 {[%clk 0:00:58.4]} 33. Bg4 {[%clk 0:00:53.9]}
33... Rxf2 {[%clk 0:00:58.4]} 34. Rxf2 {[%clk 0:00:54.8]} 34... Ne5 {[%clk
0:00:59.1]} 35. Be6+ {[%clk 0:00:54.9]} 35... Kg7 {[%clk 0:00:59]} 36. Ne1
{[%clk 0:00:51.7]} 36... h5 {[%clk 0:00:45.1]} 37. Kg2 {[%clk 0:00:49.8]} 37...
Rd6 {[%clk 0:00:41.3]} 38. Bb3 {[%clk 0:00:49.2]} 38... g4 {[%clk 0:00:41.6]}
39. hxg4 {[%clk 0:00:47.6]} 39... hxg4 {[%clk 0:00:39.6]} 40. Kf1 {[%clk
0:00:46.6]} 40... c5 {[%clk 0:00:34.4]} 41. Ke2 {[%clk 0:00:45.3]} 41... Rb6
{[%clk 0:00:33.7]} 42. Kd2 {[%clk 0:00:44.6]} 42... Rb8 {[%clk 0:00:24.7]} 43.
Be6 {[%clk 0:00:42.6]} 43... Rh8 {[%clk 0:00:22.7]} 44. Rg2 {[%clk 0:00:26]}
44... Rh1 {[%clk 0:00:22]} 45. Ke2 {[%clk 0:00:24.1]} 45... Na2 {[%clk 0:00:20]}
46. Bxa2 {[%clk 0:00:20.7]} 46... Kf6 {[%clk 0:00:16.3]} 47. Bb3 {[%clk
0:00:20.6]} 47... Ke7 {[%clk 0:00:16]} 48. Rf2 {[%clk 0:00:20.8]} 48... Rg1
{[%clk 0:00:15.1]} 49. Rg2 {[%clk 0:00:20.2]} 49... Rh1 {[%clk 0:00:15.4]} 50.
Kf2 {[%clk 0:00:19.4]} 50... g5 {[%clk 0:00:13.3]} 51. Rg1 {[%clk 0:00:19.4]}
51... Rh2+ {[%clk 0:00:13.5]} 52. Ng2 {[%clk 0:00:19.8]} 52... Rh6 {[%clk
0:00:10.6]} 53. Rb1 {[%clk 0:00:19.1]} 53... Rf6+ {[%clk 0:00:10.9]} 54. Ke2
{[%clk 0:00:19.3]} 54... Rf3 {[%clk 0:00:11.2]} 55. Bd5 {[%clk 0:00:13.6]} 55...
Rxg3 {[%clk 0:00:12.1]} 56. Ne1 {[%clk 0:00:12.9]} 56... Rh3 {[%clk 0:00:11.3]}
57. Rb7+ {[%clk 0:00:13.5]} 57... Kd8 {[%clk 0:00:10.9]} 58. Rg7 {[%clk
0:00:13.2]} 58... Rh2+ {[%clk 0:00:10.9]} 59. Kf1 {[%clk 0:00:11.8]} 59... Rh1+
{[%clk 0:00:10.2]} 60. Ke2 {[%clk 0:00:12]} 60... Rh2+ {[%clk 0:00:10.5]} 61.
Kf1 {[%clk 0:00:09.4]} 61... Rh1+ {[%clk 0:00:10.9]} 62. Ke2 {[%clk 0:00:09.2]}
62... Rh2+ {[%clk 0:00:06.4]} 1/2-1/2

[Event "Late-Titled-Tuesday-Blitz-February-13-2024"]
[Site "Chess.com"]
[Date "2024.02.13"]
[Round "11"]
[White "JaackCamel"]
[Black "kibromNNN"]
[Result "1-0"]
[WhiteElo "2203"]
[BlackElo "1813"]
[TimeControl "180+1"]
[EndTime "16:06:09 PST"]
[Termination "JaackCamel won on time"]

1. d4 {[%clk 0:02:59.8]} 1... Nf6 {[%clk 0:02:59.4]} 2. c4 {[%clk 0:02:59.5]}
2... e6 {[%clk 0:02:56.8]} 3. Nc3 {[%clk 0:02:58.2]} 3... d5 {[%clk 0:02:56.7]}
4. cxd5 {[%clk 0:02:57.7]} 4... exd5 {[%clk 0:02:55.8]} 5. Bg5 {[%clk
0:02:57.7]} 5... Be7 {[%clk 0:02:55.8]} 6. e3 {[%clk 0:02:57.5]} 6... c6 {[%clk
0:02:55.2]} 7. Bd3 {[%clk 0:02:57.3]} 7... O-O {[%clk 0:02:53.9]} 8. Qc2 {[%clk
0:02:56.9]} 8... h6 {[%clk 0:02:53]} 9. Bh4 {[%clk 0:02:56.4]} 9... Be6 {[%clk
0:02:46.7]} 10. Nge2 {[%clk 0:02:53.5]} 10... Nbd7 {[%clk 0:02:45.5]} 11. O-O
{[%clk 0:02:52.5]} 11... Bd6 {[%clk 0:02:36.2]} 12. h3 {[%clk 0:02:49.3]} 12...
Qc7 {[%clk 0:02:31.1]} 13. Rac1 {[%clk 0:02:45.1]} 13... Rac8 {[%clk 0:02:28.9]}
14. Bg3 {[%clk 0:02:39]} 14... Bxg3 {[%clk 0:02:26.9]} 15. Nxg3 {[%clk
0:02:38.6]} 15... Qd6 {[%clk 0:02:23.7]} 16. Qe2 {[%clk 0:02:28.2]} 16... Rfe8
{[%clk 0:02:17.7]} 17. Rfd1 {[%clk 0:02:26.6]} 17... Nf8 {[%clk 0:02:12.6]} 18.
Qc2 {[%clk 0:02:23.5]} 18... Qd7 {[%clk 0:02:10.2]} 19. Kh2 {[%clk 0:02:20.9]}
19... N8h7 {[%clk 0:02:02.4]} 20. e4 {[%clk 0:02:08.9]} 20... Nxe4 {[%clk
0:01:56.3]} 21. Ncxe4 {[%clk 0:02:02.7]} 21... dxe4 {[%clk 0:01:55.8]} 22. Bxe4
{[%clk 0:01:56.1]} 22... Nf8 {[%clk 0:01:53.6]} 23. Qd3 {[%clk 0:01:40.1]} 23...
Bd5 {[%clk 0:01:52.5]} 24. Bf5 {[%clk 0:01:36.4]} 24... Ne6 {[%clk 0:01:51.5]}
25. b3 {[%clk 0:01:22.3]} 25... Qd6 {[%clk 0:01:50]} 26. Bxe6 {[%clk 0:01:21]}
26... Rxe6 {[%clk 0:01:46.5]} 27. Kg1 {[%clk 0:01:17.5]} 27... Rce8 {[%clk
0:01:43.9]} 28. Nf5 {[%clk 0:01:16.5]} 28... Qf4 {[%clk 0:01:38.9]} 29. Ne3
{[%clk 0:01:15.3]} 29... Rxe3 {[%clk 0:01:26.1]} 30. fxe3 {[%clk 0:01:09.2]}
30... Rxe3 {[%clk 0:01:26.5]} 31. Qf1 {[%clk 0:01:05]} 31... Qg5 {[%clk
0:01:12.5]} 32. Rc2 {[%clk 0:00:57.5]} 32... Rxh3 {[%clk 0:01:07.7]} 33. Rf2
{[%clk 0:00:49.3]} 33... Rg3 {[%clk 0:00:57.6]} 34. Rd3 {[%clk 0:00:41.6]} 34...
Rg4 {[%clk 0:00:47.6]} 35. Rh3 {[%clk 0:00:30.3]} 35... Rxd4 {[%clk 0:00:37]}
36. Rf5 {[%clk 0:00:26.5]} 36... Qg6 {[%clk 0:00:31.7]} 37. Rxd5 {[%clk
0:00:20]} 37... Rxd5 {[%clk 0:00:29.9]} 38. Rf3 {[%clk 0:00:20.1]} 38... Rd2
{[%clk 0:00:25.9]} 39. Kh1 {[%clk 0:00:19.2]} 39... Qh5+ {[%clk 0:00:24.2]} 40.
Kg1 {[%clk 0:00:19.1]} 40... Rxa2 {[%clk 0:00:21.9]} 41. Rf2 {[%clk 0:00:19.5]}
41... Rxf2 {[%clk 0:00:18.1]} 42. Qxf2 {[%clk 0:00:19.7]} 42... Qd5 {[%clk
0:00:16]} 43. Qxa7 {[%clk 0:00:17.7]} 43... Qxb3 {[%clk 0:00:15.3]} 44. Qb8+
{[%clk 0:00:18.2]} 44... Kh7 {[%clk 0:00:13.6]} 45. Qe5 {[%clk 0:00:17.4]} 45...
Qe6 {[%clk 0:00:12.2]} 46. Qb2 {[%clk 0:00:16.5]} 46... b5 {[%clk 0:00:11.1]}
47. Qc2+ {[%clk 0:00:16.7]} 47... f5 {[%clk 0:00:09.6]} 48. Qc5 {[%clk
0:00:16.5]} 48... Qd5 {[%clk 0:00:08]} 49. Qf8 {[%clk 0:00:15]} 49... c5 {[%clk
0:00:06.7]} 50. Kh1 {[%clk 0:00:14.6]} 50... b4 {[%clk 0:00:05.1]} 51. Qb8
{[%clk 0:00:14.5]} 51... b3 {[%clk 0:00:05.2]} 52. Qb5 {[%clk 0:00:13.8]} 52...
Qe5 {[%clk 0:00:01.7]} 53. Qxb3 {[%clk 0:00:13]} 1-0

[Event "Late-Titled-Tuesday-Blitz-February-13-2024"]
[Site "Chess.com"]
[Date "2024.02.13"]
[Round "11"]
[White "sharkarton"]
[Black "manitodeplomo"]
[Result "0-1"]
[WhiteElo "2516"]
[BlackElo "2645"]
[TimeControl "180+1"]
[EndTime "16:06:25 PST"]
[Termination "manitodeplomo won by resignation"]

1. Nf3 {[%clk 0:02:54.1]} 1... g6 {[%clk 0:02:59.2]} 2. d4 {[%clk 0:02:54.5]}
2... Bg7 {[%clk 0:02:59.7]} 3. g3 {[%clk 0:02:54.3]} 3... c5 {[%clk 0:02:59.4]}
4. c3 {[%clk 0:02:54]} 4... Qa5 {[%clk 0:02:58.3]} 5. Bg2 {[%clk 0:02:52.6]}
5... cxd4 {[%clk 0:02:55.6]} 6. Nxd4 {[%clk 0:02:53.5]} 6... Nf6 {[%clk
0:02:51]} 7. O-O {[%clk 0:02:51]} 7... O-O {[%clk 0:02:50.7]} 8. Nd2 {[%clk
0:02:47.5]} 8... Nc6 {[%clk 0:02:45]} 9. N2b3 {[%clk 0:02:37.8]} 9... Qc7 {[%clk
0:02:42.8]} 10. Nb5 {[%clk 0:02:29]} 10... Qb8 {[%clk 0:02:40]} 11. e4 {[%clk
0:02:19.4]} 11... d6 {[%clk 0:02:37.1]} 12. h3 {[%clk 0:02:12.7]} 12... Bd7
{[%clk 0:02:37.1]} 13. N5d4 {[%clk 0:02:11.1]} 13... Rc8 {[%clk 0:02:35]} 14.
Be3 {[%clk 0:02:03.1]} 14... Ne5 {[%clk 0:02:33.7]} 15. Nd2 {[%clk 0:01:54.2]}
15... a6 {[%clk 0:02:23.8]} 16. f4 {[%clk 0:01:54]} 16... Nc6 {[%clk 0:02:23.9]}
17. a4 {[%clk 0:01:39.3]} 17... e5 {[%clk 0:02:04.5]} 18. Nxc6 {[%clk
0:01:29.2]} 18... Bxc6 {[%clk 0:02:05.4]} 19. f5 {[%clk 0:01:29.2]} 19... d5
{[%clk 0:02:02.7]} 20. fxg6 {[%clk 0:01:26.5]} 20... hxg6 {[%clk 0:02:00.2]} 21.
Bg5 {[%clk 0:01:19.3]} 21... Nxe4 {[%clk 0:01:58.1]} 22. Nxe4 {[%clk 0:01:18.7]}
22... dxe4 {[%clk 0:01:59]} 23. h4 {[%clk 0:01:08.8]} 23... Qa7+ {[%clk
0:01:50.2]} 24. Kh2 {[%clk 0:01:04.7]} 24... Qb6 {[%clk 0:01:49.1]} 25. h5
{[%clk 0:00:56.6]} 25... Qxb2 {[%clk 0:01:44.9]} 26. hxg6 {[%clk 0:00:56.6]}
26... fxg6 {[%clk 0:01:45]} 27. Qg4 {[%clk 0:00:53.1]} 27... Re8 {[%clk
0:01:36.3]} 28. Be3 {[%clk 0:00:32.2]} 28... Qxc3 {[%clk 0:01:24.6]} 29. Rae1
{[%clk 0:00:21.7]} 29... Qc4 {[%clk 0:01:21.2]} 30. Qxg6 {[%clk 0:00:20.5]}
30... Qe6 {[%clk 0:01:20.4]} 31. Bxe4 {[%clk 0:00:18.3]} 31... Bxe4 {[%clk
0:01:20]} 32. Qxe4 {[%clk 0:00:18.1]} 32... Rac8 {[%clk 0:01:20.1]} 33. Rh1
{[%clk 0:00:16.7]} 33... Rc4 {[%clk 0:01:17.5]} 34. Qd3 {[%clk 0:00:13.7]} 34...
e4 {[%clk 0:01:15.1]} 35. Qe2 {[%clk 0:00:12.6]} 35... Rec8 {[%clk 0:01:14.8]}
36. Rc1 {[%clk 0:00:12.6]} 36... Qc6 {[%clk 0:01:11.3]} 37. Rxc4 {[%clk
0:00:08.7]} 37... Qxc4 {[%clk 0:01:12.2]} 38. Qh5 {[%clk 0:00:08.6]} 38... Qa2+
{[%clk 0:01:01.6]} 39. Kg1 {[%clk 0:00:07.4]} 39... Qb1+ {[%clk 0:00:51.4]} 40.
Kg2 {[%clk 0:00:07.7]} 40... Qa2+ {[%clk 0:00:50]} 41. Bf2 {[%clk 0:00:07.5]}
41... Qe6 {[%clk 0:00:37.4]} 42. Qh7+ {[%clk 0:00:06.3]} 42... Kf7 {[%clk
0:00:36]} 43. Qh5+ {[%clk 0:00:06.3]} 43... Ke7 {[%clk 0:00:32.4]} 44. Bc5+
{[%clk 0:00:06.1]} 44... Kd7 {[%clk 0:00:19.2]} 45. Rd1+ {[%clk 0:00:05.6]}
45... Kc7 {[%clk 0:00:18.9]} 46. Bd6+ {[%clk 0:00:06.1]} 46... Kb6 {[%clk
0:00:17.5]} 47. a5+ {[%clk 0:00:03.1]} 47... Ka7 {[%clk 0:00:17.3]} 48. Bf4
{[%clk 0:00:03]} 48... e3 {[%clk 0:00:14.5]} 49. Bxe3+ {[%clk 0:00:03.9]} 49...
Qxe3 {[%clk 0:00:13.4]} 50. Qg4 {[%clk 0:00:02.5]} 50... Qc3 {[%clk 0:00:10.1]}
51. Qf4 {[%clk 0:00:01.4]} 51... Qc6+ {[%clk 0:00:09.1]} 52. Kh2 {[%clk
0:00:01.5]} 52... Ka8 {[%clk 0:00:09.6]} 53. Qf2 {[%clk 0:00:01.8]} 53... Bh6
{[%clk 0:00:09.3]} 54. Rd2 {[%clk 0:00:02.7]} 54... Bxd2 {[%clk 0:00:08.6]} 55.
Qxd2 {[%clk 0:00:03.6]} 55... Qc2 {[%clk 0:00:08.8]} 56. Qxc2 {[%clk 0:00:02.9]}
56... Rxc2+ {[%clk 0:00:09.7]} 57. Kh3 {[%clk 0:00:03.1]} 57... Rc5 {[%clk
0:00:10.6]} 58. g4 {[%clk 0:00:04]} 58... Rxa5 {[%clk 0:00:11.2]} 59. Kh4 {[%clk
0:00:04.9]} 59... Ra4 {[%clk 0:00:11.4]} 60. Kh5 {[%clk 0:00:05.4]} 60... Ra1
{[%clk 0:00:11.4]} 61. g5 {[%clk 0:00:05.9]} 61... Rb1 {[%clk 0:00:12.3]} 62. g6
{[%clk 0:00:06.4]} 62... Rc1 {[%clk 0:00:12.9]} 63. g7 {[%clk 0:00:06.7]} 63...
Rh1+ {[%clk 0:00:13.5]} 64. Kg6 {[%clk 0:00:07]} 64... Rg1+ {[%clk 0:00:14.4]}
65. Kf7 {[%clk 0:00:07.9]} 65... a5 {[%clk 0:00:14.7]} 66. g8=Q+ {[%clk
0:00:08.8]} 66... Rxg8 {[%clk 0:00:14.6]} 67. Kxg8 {[%clk 0:00:09.7]} 67... a4
{[%clk 0:00:14.9]} 68. Kf7 {[%clk 0:00:10.6]} 68... a3 {[%clk 0:00:15.8]} 69.
Ke6 {[%clk 0:00:11.5]} 69... a2 {[%clk 0:00:16.3]} 70. Kd7 {[%clk 0:00:11.3]}
70... a1=Q {[%clk 0:00:17.2]} 71. Kc7 {[%clk 0:00:12]} 71... Qc1+ {[%clk
0:00:16.3]} 72. Kb6 {[%clk 0:00:12.9]} 72... Qc6+ {[%clk 0:00:16]} 73. Ka5
{[%clk 0:00:13.8]} 73... Qa6+ {[%clk 0:00:16.2]} 74. Kb4 {[%clk 0:00:14.7]}
74... Qb6+ {[%clk 0:00:16]} 75. Ka4 {[%clk 0:00:14.9]} 75... Kb8 {[%clk
0:00:16]} 76. Ka3 {[%clk 0:00:15.4]} 76... Kc8 {[%clk 0:00:16.9]} 77. Ka4 {[%clk
0:00:16.3]} 77... Kd8 {[%clk 0:00:17.6]} 78. Ka3 {[%clk 0:00:17]} 78... Ke7
{[%clk 0:00:18.5]} 0-1